fUSD/lending_fUSD_20250207
["ID","MTS","AMOUNT","RATE_DAILY","PERIOD"]
[352033957,1738891842190,-381.50519491,0.00016575,2]
[352033959,1738891842202,-500.0,0.00016575,2]
[352033961,1738891842212,-500.0,0.00016575,2]
[352033963,1738891842222,-500.0,0.00016575,2]
[352033965,1738891842232,-500.0,0.00016575,2]
[352033967,1738891842241,-500.0,0.00016575,2]
[352033970,1738891842251,-214.19,0.00016575,2]
[352033972,1738891842262,-500.0,0.00016575,2]
[352033974,1738891842272,-176.43255111,0.00016575,2]
[352033976,1738891842281,-500.0,0.00016575,2]
[352033978,1738891842291,-500.0,0.00016575,2]
[352033980,1738891842301,-472.8,0.00016575,2]
[352033982,1738891842311,-500.0,0.00016575,2]
[352033984,1738891842321,-500.0,0.00016575,2]
[352033986,1738891842331,-500.0,0.00016575,2]
[352033988,1738891842340,-500.0,0.00016575,2]
[352033990,1738891842351,-500.0,0.00016575,2]
[352033992,1738891842361,-500.0,0.00016575,2]
[352033994,1738891842371,-500.0,0.00016575,2]
[352033996,1738891842380,-500.0,0.00016575,2]
[352033998,1738891842390,-171.60300608,0.00016575,2]
[352034000,1738891842400,-500.0,0.00016575,2]
[352034003,1738891842410,-516.97789408,0.00016575,2]
[352034005,1738891842419,-305.47268568,0.00016575,2]
[352034007,1738891842429,-500.0,0.00016575,2]
[352034009,1738891842439,-500.0,0.00016575,2]
[352034011,1738891842451,-500.0,0.00016575,2]
[352034013,1738891842461,-500.0,0.00016575,2]
[352034015,1738891842471,-500.0,0.00016575,2]
[352034017,1738891842481,-500.0,0.00016575,2]
[352034019,1738891842493,-500.0,0.00016575,2]
[352034021,1738891842503,-500.0,0.00016575,2]
[352034023,1738891842513,-308.77419103,0.00016575,2]
[352034025,1738891842523,-500.0,0.00016575,2]
[352034027,1738891842534,-500.0,0.00016575,2]
[352034029,1738891842544,-500.0,0.00016575,2]
[352034031,1738891842554,-500.0,0.00016575,2]
[352034034,1738891842565,-500.0,0.00016575,2]
[352034036,1738891842575,-500.0,0.00016575,2]
[352034038,1738891842585,-500.0,0.00016575,2]
[352034040,1738891842595,-304.87232033,0.00016575,2]
[352034042,1738891842605,-500.0,0.00016575,2]
[352034044,1738891842616,-500.0,0.00016575,2]
[352034046,1738891842625,-500.0,0.00016575,2]
[352034048,1738891842635,-579.0,0.00016575,2]
[352034050,1738891842645,-500.0,0.00016575,2]
[352034052,1738891842655,-500.0,0.00016575,2]
[352034054,1738891842665,-500.0,0.00016575,2]
[352034056,1738891842675,-500.0,0.00016575,2]
[352034058,1738891842685,-500.0,0.00016575,2]
[352034060,1738891842695,-500.0,0.00016575,2]
[352034063,1738891842712,-500.0,0.00016575,2]
[352034065,1738891842722,-500.0,0.00016575,2]
[352034067,1738891842732,-630.81,0.00016575,2]
[352034069,1738891842742,-500.0,0.00016575,2]
[352034071,1738891842752,-612.76,0.00016575,2]
[352034073,1738891842762,-500.0,0.00016575,2]
[352034075,1738891842772,-438.89,0.00016575,2]
[352034077,1738891842782,-500.0,0.00016575,2]
[352034079,1738891842793,-500.0,0.00016575,2]
[352034081,1738891842803,-500.0,0.00016575,2]
[352034083,1738891842813,-640.93,0.00016575,2]
[352034086,1738891842823,-500.0,0.00016575,2]
[352034088,1738891842833,-500.0,0.00016575,2]
[352034090,1738891842843,-277.41763565,0.00016575,2]
[352034092,1738891842853,-500.0,0.00016575,2]
[352034094,1738891842862,-500.0,0.00016575,2]
[352034096,1738891842871,-373.18,0.00016575,2]
[352034098,1738891842881,-500.0,0.00016575,2]
[352034100,1738891842891,-500.0,0.00016575,2]
[352034102,1738891842901,-500.0,0.00016575,2]
[352034104,1738891842911,-481.42403668,0.00016575,2]
[352034106,1738891842921,-500.0,0.00016575,2]
[352034108,1738891842931,-500.0,0.00016575,2]
[352034110,1738891842942,-500.0,0.00016575,2]
[352034113,1738891842956,-467.92938398,0.00016575,2]
[352034115,1738891842966,-500.0,0.00016575,2]
[352034117,1738891842976,-520.31,0.00016575,2]
[352034119,1738891842986,-500.0,0.00016575,2]
[352034121,1738891842997,-500.0,0.00016575,2]
[352034123,1738891843007,-500.0,0.00016575,2]
[352034125,1738891843018,-500.0,0.00016575,2]
[352034127,1738891843028,-500.0,0.00016575,2]
[352034129,1738891843038,-500.0,0.00016575,2]
[352034131,1738891843048,-500.0,0.00016575,2]
[352034133,1738891843058,-500.0,0.00016575,2]
[352034136,1738891843068,-500.0,0.00016575,2]
[352034138,1738891843078,-632.41,0.00016575,2]
[352034140,1738891843088,-610.95,0.00016575,2]
[352034142,1738891843099,-500.0,0.00016575,2]
[352034144,1738891843108,-500.0,0.00016575,2]
[352034146,1738891843118,-500.0,0.00016575,2]
[352034148,1738891843128,-500.0,0.00016575,2]
[352034150,1738891843139,-500.0,0.00016575,2]
[352034154,1738891843149,-500.0,0.00016575,2]
[352034157,1738891843159,-500.0,0.00016575,2]
[352034161,1738891843170,-465.85,0.00016575,2]
[352034164,1738891843180,-500.0,0.00016575,2]
[352034167,1738891843190,-500.0,0.00016575,2]
[352034169,1738891843202,-500.0,0.00016575,2]
[352034172,1738891843213,-415.6924217,0.00016575,2]
[352034175,1738891843223,-500.0,0.00016575,2]
[352034177,1738891843232,-500.0,0.00016575,2]
[352034179,1738891843242,-500.0,0.00016575,2]
[352034181,1738891843252,-500.0,0.00016575,2]
[352034183,1738891843262,-500.0,0.00016575,2]
[352034185,1738891843272,-500.0,0.00016575,2]
[352034188,1738891843282,-500.0,0.00016575,2]
[352034191,1738891843292,-500.0,0.00016575,2]
[352034194,1738891843303,-500.0,0.00016575,2]
[352034196,1738891843315,-500.0,0.00016575,2]
[352034199,1738891843332,-508.54,0.00016575,2]
[352034201,1738891843346,-500.0,0.00016575,2]
[352034204,1738891843358,-595.3,0.00016575,2]
[352034208,1738891843369,-500.0,0.00016575,2]
[352034211,1738891843381,-500.0,0.00016575,2]
[352034215,1738891843394,-500.0,0.00016575,2]
[352034219,1738891843407,-500.0,0.00016575,2]
[352034222,1738891843419,-500.0,0.00016575,2]
[352034226,1738891843433,-500.0,0.00016575,2]
[352034229,1738891843446,-500.0,0.00016575,2]
[352034232,1738891843459,-500.0,0.00016575,2]
[352034235,1738891843471,-506.05,0.00016575,2]
[352034239,1738891843481,-500.0,0.00016575,2]
[352034242,1738891843494,-500.0,0.00016575,2]
[352034244,1738891843506,-539.2,0.00016575,2]
[352034246,1738891843519,-500.0,0.00016575,2]
[352034249,1738891843532,-500.0,0.00016575,2]
[352034251,1738891843544,-500.0,0.00016575,2]
[352034254,1738891843558,-500.0,0.00016575,2]
[352034256,1738891843571,-500.0,0.00016575,2]
[352034258,1738891843585,-500.0,0.00016575,2]
[352034260,1738891843596,-583.91,0.00016575,2]
[352034263,1738891843609,-500.0,0.00016575,2]
[352034265,1738891843623,-500.0,0.00016575,2]
[352034268,1738891843634,-500.0,0.00016575,2]
[352034270,1738891843645,-500.0,0.00016575,2]
[352034272,1738891843658,-500.0,0.00016575,2]
[352034274,1738891843670,-500.0,0.00016575,2]
[352034276,1738891843682,-394.4,0.00016575,2]
[352034279,1738891843696,-500.0,0.00016575,2]
[352034280,1738891843711,-500.0,0.00016575,2]
[352034281,1738891843723,-530.16283249,0.00016575,2]
[352034282,1738891843735,-500.0,0.00016575,2]
[352034283,1738891843745,-500.0,0.00016575,2]
[352034284,1738891843756,-500.0,0.00016575,2]
[352034285,1738891843767,-500.0,0.00016575,2]
[352034286,1738891843779,-500.0,0.00016575,2]
[352034287,1738891843792,-500.0,0.00016575,2]
[352034288,1738891843805,-500.0,0.00016575,2]
[352034289,1738891843814,-500.0,0.00016575,2]
[352034290,1738891843824,-500.0,0.00016575,2]
[352034292,1738891843834,-500.0,0.00016575,2]
[352034294,1738891843847,-500.0,0.00016575,2]
[352034297,1738891843861,-500.0,0.00016575,2]
[352034299,1738891843874,-500.0,0.00016575,2]
[352034301,1738891843885,-500.0,0.00016575,2]
[352034303,1738891843895,-500.0,0.00016575,2]
[352034305,1738891843907,-500.0,0.00016575,2]
[352034307,1738891843918,-500.0,0.00016575,2]
[352034309,1738891843935,-500.0,0.00016575,2]
[352034311,1738891843946,-543.62,0.00016575,2]
[352034314,1738891843959,-500.0,0.00016575,2]
[352034316,1738891843971,-645.09,0.00016575,2]
[352034318,1738891843983,-500.0,0.00016575,2]
[352034320,1738891843994,-500.0,0.00016575,2]
[352034322,1738891844006,-500.0,0.00016575,2]
[352034325,1738891844017,-507.37687901,0.00016575,2]
[352034327,1738891844029,-500.0,0.00016575,2]
[352034329,1738891844040,-500.0,0.00016575,2]
[352034331,1738891844050,-500.0,0.00016575,2]
[352034333,1738891844061,-500.0,0.00016575,2]
[352034335,1738891844073,-610.94,0.00016575,2]
[352034338,1738891844083,-500.0,0.00016575,2]
[352034340,1738891844095,-500.0,0.00016575,2]
[352034343,1738891844106,-500.0,0.00016575,2]
[352034346,1738891844116,-472.20105034,0.00016575,2]
[352034348,1738891844127,-500.0,0.00016575,2]
[352034350,1738891844139,-500.0,0.00016575,2]
[352034353,1738891844150,-726.65,0.00016575,2]
[352034355,1738891844161,-332.16,0.00016575,2]
[352034357,1738891844172,-500.0,0.00016575,2]
[352034359,1738891844184,-427.48,0.00016575,2]
[352034361,1738891844195,-500.0,0.00016575,2]
[352034363,1738891844207,-500.0,0.00016575,2]
[352034366,1738891844218,-500.0,0.00016575,2]
[352034368,1738891844231,-621.44,0.00016575,2]
[352034370,1738891844243,-500.0,0.00016575,2]
[352034372,1738891844255,-500.0,0.00016575,2]
[352034375,1738891844267,-500.0,0.00016575,2]
[352034377,1738891844278,-500.0,0.00016575,2]
[352034379,1738891844290,-500.0,0.00016575,2]
[352034381,1738891844301,-500.0,0.00016575,2]
[352034384,1738891844314,-500.0,0.00016575,2]
[352034386,1738891844325,-605.48,0.00016575,2]
[352034388,1738891844337,-500.0,0.00016575,2]
[352034390,1738891844350,-500.0,0.00016575,2]
[352034393,1738891844363,-500.0,0.00016575,2]
[352034395,1738891844374,-500.0,0.00016575,2]
[352034397,1738891844385,-500.0,0.00016575,2]
[352034399,1738891844396,-500.0,0.00016575,2]
[352034402,1738891844408,-234.47,0.00016575,2]
[352034404,1738891844419,-500.0,0.00016575,2]
[352034406,1738891844431,-790.9,0.00016575,2]
[352034408,1738891844442,-500.0,0.00016575,2]
[352034410,1738891844455,-500.0,0.00016575,2]
[352034412,1738891844466,-500.0,0.00016575,2]
[352034415,1738891844477,-500.0,0.00016575,2]
[352034417,1738891844490,-500.0,0.00016575,2]
[352034419,1738891844502,-500.0,0.00016575,2]
[352034421,1738891844513,-500.0,0.00016575,2]
[352034423,1738891844526,-500.0,0.00016575,2]
[352034425,1738891844537,-500.0,0.00016575,2]
[352034427,1738891844549,-500.0,0.00016575,2]
[352034430,1738891844559,-500.0,0.00016575,2]
[352034432,1738891844572,-500.0,0.00016575,2]
[352034434,1738891844583,-526.09,0.00016575,2]
[352034436,1738891844594,-500.0,0.00016575,2]
[352034438,1738891844605,-500.0,0.00016575,2]
[352034440,1738891844617,-500.0,0.00016575,2]
[352034443,1738891844628,-500.0,0.00016575,2]
[352034445,1738891844640,-500.0,0.00016575,2]
[352034447,1738891844651,-500.0,0.00016575,2]
[352034449,1738891844662,-568.75,0.00016575,2]
[352034451,1738891844673,-723.88,0.00016575,2]
[352034454,1738891844685,-500.0,0.00016575,2]
[352034456,1738891844696,-500.0,0.00016575,2]
[352034458,1738891844709,-500.0,0.00016575,2]
[352034460,1738891844720,-500.0,0.00016575,2]
[352034462,1738891844731,-500.0,0.00016575,2]
[352034465,1738891844743,-500.0,0.00016575,2]
[352034467,1738891844754,-500.0,0.00016575,2]
[352034469,1738891844766,-500.0,0.00016575,2]
[352034471,1738891844778,-2455.05,0.00016575,2]
[352034473,1738891844791,-500.0,0.00016575,2]
[352034476,1738891844802,-500.0,0.00016575,2]
[352034478,1738891844813,-609.11369345,0.00016575,2]
[352034480,1738891844825,-500.0,0.00016575,2]
[352034482,1738891844840,-500.0,0.00016575,2]
[352034484,1738891844857,-1078.11,0.00016575,2]
[352034487,1738891844869,-500.0,0.00016575,2]
[352034489,1738891844879,-554.71,0.00016575,2]
[352034491,1738891844888,-743.03,0.00016575,2]
[352034493,1738891844899,-500.0,0.00016575,2]
[352034496,1738891844908,-500.0,0.00016575,2]
[352034498,1738891844919,-500.0,0.00016575,2]
[352034500,1738891844928,-914.09,0.00016575,2]
[352034502,1738891844938,-1005.93,0.00016575,2]
[352034504,1738891844950,-511.01,0.00016575,2]
[352034506,1738891844962,-500.0,0.00016575,2]
[352034509,1738891844973,-500.0,0.00016575,2]
[352034511,1738891844984,-583.56,0.00016575,2]
[352034513,1738891844996,-500.0,0.00016575,2]
[352034515,1738891845007,-956.66,0.00016575,2]
[352034517,1738891845019,-593.32,0.00016575,2]
[352034519,1738891845030,-1106.91,0.00016575,2]
[352034522,1738891845043,-500.0,0.00016575,2]
[352034524,1738891845054,-500.0,0.00016575,2]
[352034526,1738891845066,-739.72,0.00016575,2]
[352034528,1738891845077,-500.0,0.00016575,2]
[352034530,1738891845089,-573.76,0.00016575,2]
[352034533,1738891845099,-500.0,0.00016575,2]
[352034535,1738891845110,-744.8,0.00016575,2]
[352034537,1738891845122,-857.32,0.00016575,2]
[352034539,1738891845133,-500.0,0.00016575,2]
[352034541,1738891845144,-500.0,0.00016575,2]
[352034543,1738891845156,-604.79,0.00016575,2]
[352034546,1738891845167,-1521.13,0.00016575,2]
[352034548,1738891845180,-1059.01,0.00016575,2]
[352034550,1738891845191,-649.01,0.00016575,2]
[352034552,1738891845203,-1014.75,0.00016575,2]
[352034554,1738891845214,-500.0,0.00016575,2]
[352034556,1738891845226,-500.0,0.00016575,2]
[352034559,1738891845237,-500.0,0.00016575,2]
[352034561,1738891845248,-627.69,0.00016575,2]
[352034563,1738891845259,-500.0,0.00016575,2]
[352034565,1738891845271,-500.0,0.00016575,2]
[352034567,1738891845282,-828.69,0.00016575,2]
[352034570,1738891845293,-545.06,0.00016575,2]
[352034572,1738891845305,-500.0,0.00016575,2]
[352034574,1738891845316,-500.0,0.00016575,2]
[352034576,1738891845327,-500.0,0.00016575,2]
[352034578,1738891845338,-500.0,0.00016575,2]
[352034581,1738891845350,-500.0,0.00016575,2]
[352034583,1738891845362,-2044.42,0.00016575,2]
[352034585,1738891845373,-500.0,0.00016575,2]
[352034587,1738891845385,-500.0,0.00016575,2]
[352034590,1738891845396,-500.0,0.00016575,2]
[352034592,1738891845407,-500.0,0.00016575,2]
[352034618,1738891845684,-500.0,0.00016575,2]
[352034622,1738891845708,-1240.11,0.00016575,2]
[352034624,1738891845718,-873.51,0.00016575,2]
[352034626,1738891845728,-500.0,0.00016575,2]
[352034628,1738891845737,-500.0,0.00016575,2]
[352034629,1738891845747,-500.0,0.00016575,2]
[352034631,1738891845756,-851.17,0.00016575,2]
[352034633,1738891845765,-1290.66,0.00016575,2]
[352034635,1738891845775,-500.0,0.00016575,2]
[352034637,1738891845784,-500.0,0.00016575,2]
[352034639,1738891845794,-1092.65,0.00016575,2]
[352034641,1738891845803,-1808.83,0.00016575,2]
[352034643,1738891845814,-500.0,0.00016575,2]
[352034645,1738891845823,-500.0,0.00016575,2]
[352034647,1738891845833,-22.47979972,0.00016575,2]
[352034677,1738891846120,-977.52020028,0.00016575,2]
[352034679,1738891846131,-794.89,0.00016575,2]
[352034681,1738891846141,-1264.71,0.00016575,2]
[352034683,1738891846151,-975.86,0.00016575,2]
[352034685,1738891846161,-500.0,0.00016575,2]
[352034687,1738891846172,-500.0,0.00016575,2]
[352034689,1738891846181,-863.62,0.00016575,2]
[352034691,1738891846191,-500.0,0.00016575,2]
[352034693,1738891846201,-500.0,0.00016575,2]
[352034695,1738891846211,-1311.47,0.00016575,2]
[352034697,1738891846220,-500.0,0.00016575,2]
[352034699,1738891846230,-1084.15,0.00016575,2]
[352034701,1738891846241,-500.0,0.00016575,2]
[352034703,1738891846256,-500.0,0.00016575,2]
[352034705,1738891846265,-500.0,0.00016575,2]
[352034707,1738891846275,-500.0,0.00016575,2]
[352034709,1738891846285,-500.0,0.00016575,2]
[352034711,1738891846295,-500.0,0.00016575,2]
[352034713,1738891846304,-1214.06,0.00016575,2]
[352034715,1738891846313,-500.0,0.00016575,2]
[352034717,1738891846321,-500.0,0.00016575,2]
[352034719,1738891846331,-500.0,0.00016575,2]
[352034721,1738891846341,-500.0,0.00016575,2]
[352034723,1738891846351,-949.27,0.00016575,2]
[352034725,1738891846360,-1004.21,0.00016575,2]
[352034727,1738891846369,-500.0,0.00016575,2]
[352034729,1738891846379,-500.0,0.00016575,2]
[352034731,1738891846389,-1041.39,0.00016575,2]
[352034735,1738891846398,-500.0,0.00016575,2]
[352034739,1738891846407,-1554.12,0.00016575,2]
[352034743,1738891846417,-832.98,0.00016575,2]
[352034747,1738891846426,-500.0,0.00016575,2]
[352034750,1738891846436,-500.0,0.00016575,2]
[352034753,1738891846445,-575.57,0.00016575,2]
[352034755,1738891846456,-971.04,0.00016575,2]
[352034758,1738891846465,-828.01,0.00016575,2]
[352034761,1738891846476,-541.25,0.00016575,2]
[352034765,1738891846487,-1162.45,0.00016575,2]
[352034768,1738891846500,-1340.22,0.00016575,2]
[352034770,1738891846510,-500.0,0.00016575,2]
[352034773,1738891846520,-500.0,0.00016575,2]
[352034776,1738891846531,-500.0,0.00016575,2]
[352034779,1738891846540,-1752.33,0.00016575,2]
[352034781,1738891846550,-927.71,0.00016575,2]
[352034785,1738891846561,-2972.98,0.00016575,2]
[352034787,1738891846571,-500.0,0.00016575,2]
[352034790,1738891846580,-869.48,0.00016575,2]
[352034793,1738891846590,-871.64,0.00016575,2]
[352034796,1738891846599,-1755.62,0.00016575,2]
[352034799,1738891846608,-500.0,0.00016575,2]
[352034802,1738891846618,-500.0,0.00016575,2]
[352034805,1738891846627,-500.0,0.00016575,2]
[352034808,1738891846636,-500.0,0.00016575,2]
[352034811,1738891846646,-500.0,0.00016575,2]
[352034814,1738891846655,-500.0,0.00016575,2]
[352034817,1738891846665,-701.5,0.00016575,2]
[352034819,1738891846675,-500.0,0.00016575,2]
[352034821,1738891846685,-1478.42,0.00016575,2]
[352034823,1738891846695,-500.0,0.00016575,2]
[352034825,1738891846704,-1555.2,0.00016575,2]
[352034827,1738891846714,-500.0,0.00016575,2]
[352034829,1738891846723,-809.23,0.00016575,2]
[352034831,1738891846732,-500.0,0.00016575,2]
[352034833,1738891846741,-1405.48,0.00016575,2]
[352034835,1738891846751,-527.06948159,0.00016575,2]
[352034837,1738891846760,-535.43,0.00016575,2]
[352034839,1738891846770,-500.0,0.00016575,2]
[352034841,1738891846779,-500.0,0.00016575,2]
[352034843,1738891846788,-500.0,0.00016575,2]
[352034845,1738891846798,-1469.96,0.00016575,2]
[352034847,1738891846807,-500.0,0.00016575,2]
[352034849,1738891846816,-500.0,0.00016575,2]
[352034851,1738891846826,-500.0,0.00016575,2]
[352034853,1738891846835,-802.09,0.00016575,2]
[352034855,1738891846844,-500.0,0.00016575,2]
[352034857,1738891846853,-1545.02,0.00016575,2]
[352034859,1738891846863,-500.0,0.00016575,2]
[352034861,1738891846873,-1249.08,0.00016575,2]
[352034863,1738891846883,-809.86,0.00016575,2]
[352034865,1738891846897,-1664.37,0.00016575,2]
[352034867,1738891846909,-500.0,0.00016575,2]
[352034869,1738891846919,-500.0,0.00016575,2]
[352034871,1738891846929,-500.0,0.00016575,2]
[352034873,1738891846939,-601.3,0.00016575,2]
[352034875,1738891846950,-500.0,0.00016575,2]
[352034877,1738891846959,-855.96,0.00016575,2]
[352034879,1738891846969,-1956.41,0.00016575,2]
[352034881,1738891846979,-3154.16,0.00016575,2]
[352034883,1738891846989,-500.0,0.00016575,2]
[352034885,1738891846999,-500.0,0.00016575,2]
[352034887,1738891847008,-372.12885899,0.00016575,2]
[352034888,1738891847021,-500.0,0.00016575,2]
[352034889,1738891847033,-500.0,0.00016575,2]
[352034890,1738891847043,-500.0,0.00016575,2]
[352034891,1738891847052,-500.0,0.00016575,2]
[352034892,1738891847061,-500.0,0.00016575,2]
[352034893,1738891847070,-1185.11,0.00016575,2]
[352034894,1738891847079,-500.0,0.00016575,2]
[352034895,1738891847089,-500.0,0.00016575,2]
[352034896,1738891847098,-1040.84,0.00016575,2]
[352034897,1738891847109,-1478.69,0.00016575,2]
[352034898,1738891847118,-500.0,0.00016575,2]
[352034899,1738891847128,-500.0,0.00016575,2]
[352034900,1738891847139,-500.0,0.00016575,2]
[352034901,1738891847149,-690.83,0.00016575,2]
[352034902,1738891847158,-500.0,0.00016575,2]
[352034904,1738891847168,-500.0,0.00016575,2]
[352034905,1738891847178,-500.0,0.00016575,2]
[352034907,1738891847188,-500.0,0.00016575,2]
[352034909,1738891847198,-500.0,0.00016575,2]
[352034911,1738891847208,-500.0,0.00016575,2]
[352034913,1738891847218,-500.0,0.00016575,2]
[352034915,1738891847228,-2562.17,0.00016575,2]
[352034917,1738891847238,-1290.1,0.00016575,2]
[352034919,1738891847247,-500.0,0.00016575,2]
[352034921,1738891847256,-500.0,0.00016575,2]
[352034923,1738891847266,-500.0,0.00016575,2]
[352034925,1738891847275,-500.0,0.00016575,2]
[352034927,1738891847285,-911.96,0.00016575,2]
[352034929,1738891847295,-500.0,0.00016575,2]
[352034931,1738891847304,-970.24,0.00016575,2]
[352034933,1738891847314,-534.51,0.00016575,2]
[352034935,1738891847324,-500.0,0.00016575,2]
[352034937,1738891847334,-500.0,0.00016575,2]
[352034939,1738891847343,-500.0,0.00016575,2]
[352034941,1738891847353,-500.0,0.00016575,2]
[352034943,1738891847363,-1791.15,0.00016575,2]
[352034945,1738891847373,-500.0,0.00016575,2]
[352034947,1738891847383,-1004.37,0.00016575,2]
[352034949,1738891847393,-767.89,0.00016575,2]
[352034951,1738891847403,-500.0,0.00016575,2]
[352034953,1738891847412,-500.0,0.00016575,2]
[352034955,1738891847423,-500.0,0.00016575,2]
[352034957,1738891847432,-867.53,0.00016575,2]
[352034959,1738891847442,-500.0,0.00016575,2]
[352034961,1738891847453,-500.0,0.00016575,2]
[352034963,1738891847463,-500.0,0.00016575,2]
[352034965,1738891847473,-500.0,0.00016575,2]
[352034967,1738891847493,-500.0,0.00016575,2]
[352034969,1738891847506,-500.0,0.00016575,2]
[352034971,1738891847515,-500.0,0.00016575,2]
[352034972,1738891847523,-847.38,0.00016575,2]
[352034974,1738891847533,-500.0,0.00016575,2]
[352034976,1738891847544,-500.0,0.00016575,2]
[352034978,1738891847554,-500.0,0.00016575,2]
[352034980,1738891847564,-500.0,0.00016575,2]
[352034982,1738891847576,-500.0,0.00016575,2]
[352034985,1738891847587,-910.03,0.00016575,2]
[352034986,1738891847597,-1823.04,0.00016575,2]
[352034989,1738891847608,-500.0,0.00016575,2]
[352034991,1738891847618,-500.0,0.00016575,2]
[352034992,1738891847627,-925.64,0.00016575,2]
[352034994,1738891847637,-255.62780601,0.00016575,2]
[352034996,1738891847647,-500.0,0.00016575,2]
[352034998,1738891847656,-500.0,0.00016575,2]
[352035000,1738891847665,-500.0,0.00016575,2]
[352035002,1738891847675,-500.0,0.00016575,2]
[352035004,1738891847685,-500.0,0.00016575,2]
[352035006,1738891847694,-500.0,0.00016575,2]
[352035008,1738891847705,-501.98759854,0.00016575,2]
[352035010,1738891847714,-661.56,0.00016575,2]
[352035012,1738891847724,-500.0,0.00016575,2]
[352035014,1738891847734,-1515.23,0.00016575,2]
[352035016,1738891847744,-743.56,0.00016575,2]
[352035018,1738891847754,-882.91,0.00016575,2]
[352035020,1738891847764,-500.0,0.00016575,2]
[352035022,1738891847775,-500.0,0.00016575,2]
[352035024,1738891847782,-500.0,0.00016575,2]
[352035026,1738891847791,-500.0,0.00016575,2]
[352035028,1738891847799,-200.0,0.000166,2]
[352035030,1738891847806,-150.0,0.000166,2]
[352035032,1738891847815,-540.97507989,0.00016612,2]
[352035034,1738891847823,-4436.29322021,0.00016628,2]
[352035036,1738891847831,-458.60318798,0.00016637,2]
[352035038,1738891847839,-150.0,0.00016638,2]
[352035040,1738891847847,-2251.7215004,0.00016646,2]
[352035042,1738891847853,-649.88,0.00016658,30]
[352035044,1738891847862,-30000.0,0.00016658,2]
[352035046,1738891847870,-2549.23467212,0.00016685,2]
[352035048,1738891847877,-150.0,0.0001669,2]
[352035050,1738891847885,-150.0,0.00016701,2]
[352035052,1738891847894,-152.0,0.00016704,4]
[352035054,1738891847901,-150.0,0.00016709,2]
[352035055,1738891847908,-1730.29,0.00016711,2]
[352035057,1738891847916,-1730.29,0.00016711,2]
[352035059,1738891847923,-1730.29,0.00016711,2]
[352035061,1738891847931,-1730.29,0.00016711,2]
[352035063,1738891847938,-1730.29,0.00016711,2]
[352035065,1738891847945,-1730.29,0.00016711,2]
[352035067,1738891847953,-1730.29,0.00016711,2]
[352035069,1738891847962,-1730.29,0.00016711,2]
[352035071,1738891847970,-1730.29,0.00016711,2]
[352035072,1738891847978,-1730.29,0.00016711,2]
[352035074,1738891847986,-1730.29,0.00016711,2]
[352035076,1738891847993,-1730.29,0.00016711,2]
[352035078,1738891848000,-1730.29,0.00016711,2]